bitfinex/quotes_ETHUSD_20220227
["timestamp","ask_amount","ask_price","bid_price","bid_amount"]
[1645957066897,2.42659516,2764.6,2763.9,4.5]
[1645957067149,1.52659516,2764.5,2763.9,4.5]
[1645957067357,0.9,2764.6,2764.2,1.08539091]
[1645957067649,1.5262109,2764.5,2764.1,0.3]
[1645957067851,1.5262109,2764.5,2763.9,5.40457]
[1645957068652,0.00600919,2764.3,2764.0,3.5]
[1645957068851,0.00600919,2764.3,2763.9,7.00484876]
[1645957069054,0.00600919,2764.3,2763.9,2.20484876]
[1645957069252,0.00600919,2764.3,2763.8,2.40914]
[1645957069457,1.15431324,2764.5,2763.8,1.80914]
[1645957069653,1.52594254,2764.4,2763.8,1.80914]
[1645957069856,0.00600926,2764.2,2763.8,1.80914]
[1645957070054,0.00600926,2764.2,2763.4,1.80947]
[1645957070055,1.52580181,2764.1,2763.4,1.80947]
[1645957070253,1.52580181,2764.1,2763.1,2.4658663]
[1645957070254,3.5,2764.0,2763.2,0.00169071]
[1645957070454,1.09695139,2763.7,2763.2,2.81133071]
[1645957070652,1.09695139,2763.7,2763.2,1.80964]
[1645957070889,1.09695139,2763.7,2763.3,0.3]
[1645957071089,1.09695139,2763.7,2763.2,1.80964]
[1645957071290,1.09695139,2763.7,2763.2,2.80964]
[1645957071490,1.09695139,2763.7,2763.2,1.80964]
[1645957071691,1.09695139,2763.7,2763.2,2.80964]
[1645957071889,1.09695139,2763.7,2763.3,0.25]
[1645957072296,4.67256058,2764.4,2763.3,0.25]
[1645957072502,1.52599942,2764.3,2763.3,0.3]
[1645957072698,3.5,2764.2,2763.3,0.3]
[1645957072900,1.0,2764.0,2763.3,0.3]
[1645957073596,1.18300697,2763.7,2763.2,2.11133071]
[1645957073797,1.18300697,2763.7,2763.3,0.3]
[1645957073997,1.18300697,2763.7,2763.2,2.10964]
[1645957074197,1.0,2764.0,2763.3,0.3]
[1645957075858,1.52638179,2763.9,2763.3,0.3]
[1645957076057,1.05117557,2763.8,2763.3,0.3]
[1645957076456,1.0,2764.0,2763.3,0.3]
[1645957077058,0.00600912,2763.9,2763.3,0.3]
[1645957077862,2.04651323,2764.0,2763.3,0.3]
[1645957078062,1.5270479,2763.9,2763.3,0.3]
[1645957078299,1.53305709,2763.9,2763.3,0.3]
[1645957078503,0.00600919,2763.9,2763.3,0.3]
[1645957079100,2.04651323,2764.0,2763.3,0.3]
[1645957079300,1.53344937,2763.9,2763.3,0.3]
[1645957079502,1.52744965,2763.8,2763.3,0.3]
[1645957080502,0.00600912,2763.9,2763.2,2.11133071]
[1645957080706,1.52785366,2763.8,2763.2,2.11133071]
[1645957081103,3.5,2763.7,2763.2,2.11133071]
[1645957081303,1.0,2763.8,2763.2,0.3]
[1645957081508,1.52807487,2763.7,2763.2,0.3]
[1645957081706,1.30822061,2763.5,2763.1,0.00169071]
[1645957081907,1.30822061,2763.5,2763.0,1.74659057]
[1645957082347,1.30822061,2763.5,2763.0,0.44659057]
[1645957082649,1.30822061,2763.5,2763.0,0.1446]
[1645957082850,2.30822061,2763.5,2763.0,0.1446]
[1645957083047,2.30822061,2763.5,2763.0,0.14659057]
[1645957083646,2.30822061,2763.5,2763.0,0.00199057]
[1645957083848,2.30822061,2763.5,2762.9,1.46512077]
[1645957084045,2.30822061,2763.5,2762.9,1.32052077]
[1645957084247,2.30822061,2763.5,2763.0,0.00199057]
[1645957085249,2.30822061,2763.5,2762.9,0.00169071]
[1645957085453,2.30822061,2763.5,2763.0,0.00601423]
[1645957086320,2.30822061,2763.5,2762.8,0.00169071]
[1645957086519,2.30822061,2763.5,2763.0,0.00601423]
[1645957087526,2.30822061,2763.5,2762.8,0.00169071]
[1645957087527,1.0,2763.5,2762.9,1.27810561]
[1645957087727,1.0,2763.5,2763.0,0.90499]
[1645957087925,1.3613,2763.8,2763.0,1.21100423]
[1645957088128,1.52891093,2763.7,2763.0,1.21269494]
[1645957088526,0.00601225,2763.9,2763.0,3.32697682]
[1645957088726,1.0,2764.2,2763.3,0.90478]
[1645957088926,1.0,2764.2,2763.4,0.522]
[1645957089128,0.00569432,2763.9,2763.4,11.862]
[1645957089327,0.00569432,2763.9,2763.4,2.73150188]
[1645957089556,0.00569432,2763.9,2763.5,0.1446]
[1645957089743,0.00569432,2763.9,2763.6,0.522]
[1645957089944,1.0,2764.2,2763.7,1.36447841]
[1645957090143,0.00569483,2763.9,2763.7,2.26912841]
[1645957091145,1.0,2764.2,2763.7,2.26912841]
[1645957091345,0.00569498,2763.9,2763.7,2.26912841]
[1645957092151,0.00569498,2763.9,2763.7,2.79112841]
[1645957092352,1.0,2764.5,2763.7,3.79112841]
[1645957092551,0.00569498,2763.9,2763.7,3.79112841]
[1645957093594,1.0,2764.5,2763.7,3.79112841]
[1645957093792,0.00534722,2763.9,2763.7,3.79112841]
[1645957093992,0.00534722,2763.9,2763.7,3.93572841]
[1645957094792,2.5307,2764.6,2763.7,3.93572841]
[1645957094993,0.00534722,2763.9,2763.7,3.93572841]
[1645957095394,0.00534722,2763.9,2763.7,3.79112841]
[1645957095998,2.5307,2764.6,2764.2,1.34867744]
[1645957096195,1.52848029,2764.5,2764.2,1.34867744]
[1645957096494,1.52848029,2764.4,2764.2,1.34867744]
[1645957096794,1.52848029,2764.3,2764.2,1.34867744]
[1645957097038,1.52848029,2764.6,2764.2,1.34867744]
[1645957097446,0.00535328,2764.4,2764.2,1.34867744]
[1645957097643,1.52848029,2764.3,2764.2,1.34867744]
[1645957098547,1.52848029,2764.3,2764.1,1.20462]
[1645957098744,0.00538147,2764.4,2764.1,0.90462]
[1645957098945,1.528501,2764.3,2764.1,0.90462]
[1645957099847,0.00368353,2764.3,2764.1,0.90462]
[1645957100050,0.00368353,2764.3,2764.0,0.3]
[1645957100247,0.00368353,2764.3,2763.8,1.50471]
[1645957100447,0.00368353,2764.3,2763.8,1.20471]
[1645957100648,1.52852515,2764.3,2763.8,1.50471]
[1645957100898,2.52852515,2764.3,2763.8,1.50471]
[1645957101101,1.40053891,2764.1,2763.8,1.50471]
[1645957101298,1.40053891,2764.1,2763.5,0.1446]
[1645957101299,1.52852515,2764.0,2763.5,0.1446]
[1645957101500,1.52852515,2764.0,2763.4,2.71372]
[1645957101698,1.52732846,2764.0,2763.4,2.71372]
[1645957101898,2.52732846,2764.0,2763.4,2.71372]
[1645957102105,1.0,2764.0,2763.4,2.71372]
[1645957102301,1.0,2764.0,2763.3,2.04108308]
[1645957102302,4.5,2764.0,2763.3,2.04108308]
[1645957102501,0.00548117,2763.9,2763.3,2.04108308]
[1645957102702,0.00548117,2763.9,2763.4,0.3]
[1645957103303,1.0,2764.0,2763.4,0.3]
[1645957103502,0.0054811,2763.9,2763.4,0.3]
[1645957104304,1.0,2764.0,2763.4,0.3]
[1645957104553,3.50576594,2763.9,2763.4,0.3]
[1645957104750,3.50576594,2763.9,2763.2,0.3]
[1645957104952,4.50576594,2763.9,2763.1,0.3]
[1645957105151,1.19046498,2763.5,2763.0,5.66377733]
[1645957105350,1.19046498,2763.5,2763.0,4.53657733]
[1645957105550,1.19046498,2763.5,2763.0,4.5308095]
[1645957105751,1.19046498,2763.5,2763.0,4.53646549]
[1645957105952,1.19046498,2763.5,2763.0,4.08386549]
[1645957106255,1.19046498,2763.5,2763.0,1.6645067]
[1645957106851,1.19046498,2763.5,2763.0,1.65885071]
[1645957107050,1.19046498,2763.5,2763.0,1.6645067]
[1645957107453,1.19046498,2763.5,2763.0,2.2645067]
[1645957108055,1.19046498,2763.5,2763.0,2.25885071]
[1645957108292,1.19046498,2763.5,2763.0,2.95632493]
[1645957108493,1.19046498,2763.5,2763.0,1.66450904]
[1645957108898,1.19046498,2763.5,2763.0,1.21190904]
[1645957109095,1.19046498,2763.5,2763.0,1.20625071]
[1645957109497,1.19046498,2763.5,2763.0,1.81191617]
[1645957110098,1.19046498,2763.5,2763.0,2.93575181]
[1645957110299,1.19046498,2763.5,2763.0,3.93008635]
[1645957110497,1.6028,2763.8,2763.0,3.93008635]
[1645957110700,1.6028,2763.8,2763.0,3.93575181]
[1645957111203,1.2415,2763.8,2763.0,3.93575181]
[1645957111509,1.2415,2763.8,2763.0,3.93008635]
[1645957111703,1.08021022,2763.7,2763.0,3.93008635]
[1645957111904,1.08021022,2763.7,2763.0,3.48315201]
[1645957112150,1.08021022,2763.7,2763.0,2.48315201]
[1645957112753,1.08021022,2763.7,2763.0,2.47748635]
[1645957112952,1.08021022,2763.7,2763.0,2.48315139]
[1645957113352,1.2415,2763.8,2763.0,2.78315139]
[1645957113556,1.2415,2763.8,2763.1,0.90489]
[1645957113753,1.2415,2763.8,2763.1,2.10971]
[1645957114353,1.2415,2763.8,2763.6,1.03626835]
[1645957114752,0.00566332,2763.9,2763.6,1.03626835]
[1645957114951,0.00566332,2763.9,2763.6,0.93836835]
[1645957115151,2.40173554,2764.1,2763.6,0.93836835]
[1645957115353,0.00566371,2763.9,2763.5,0.3]
[1645957115800,0.00566371,2763.9,2763.3,0.3]
[1645957116003,1.00566371,2763.9,2763.3,0.3]
[1645957116501,1.0,2763.9,2763.3,0.3]
[1645957116707,1.0056622,2763.9,2763.3,0.3]
[1645957117107,1.0056622,2763.9,2763.4,1.38884148]
[1645957117708,1.0,2763.9,2763.4,1.38884148]
[1645957117909,1.00566227,2763.9,2763.4,2.29362148]
[1645957118608,1.00566227,2763.9,2763.4,1.38884148]
[1645957118809,1.0,2763.9,2763.4,1.38884148]
[1645957119010,2.15863528,2763.9,2763.4,1.38884148]
[1645957119213,2.15863528,2763.9,2763.3,1.3]
[1645957119412,2.15863528,2763.9,2763.3,0.3]
[1645957120060,2.15327117,2763.9,2763.0,7.82135071]
[1645957120256,2.15863549,2763.9,2763.0,7.8267168]
[1645957120457,1.15863549,2763.9,2763.0,7.82502609]
[1645957120859,1.0,2763.7,2763.0,7.82502609]
[1645957121059,1.0,2763.7,2763.2,1.13802706]
[1645957121257,1.0,2763.7,2763.1,0.3]
[1645957121459,1.0,2763.7,2763.0,3.17932575]
[1645957121657,1.52890027,2763.6,2763.0,2.17932575]
[1645957121860,1.52890027,2763.6,2763.0,3.17932575]
[1645957122058,1.0,2763.7,2763.0,2.17932575]
[1645957122258,1.07761044,2763.4,2763.0,2.65732575]
[1645957122458,1.0,2763.7,2763.0,1.65196]
[1645957122659,1.52889152,2763.6,2763.0,2.65732575]
[1645957122859,1.52889152,2763.6,2763.0,1.65732575]
[1645957123694,1.52889152,2763.6,2763.0,1.65196]
[1645957123895,2.71497897,2763.6,2763.0,1.65735509]
[1645957124096,1.18608745,2763.6,2763.0,1.65735509]
[1645957124698,1.52887554,2763.5,2763.0,0.00539509]
[1645957124904,1.52887554,2763.5,2762.9,1.80986]
[1645957125101,1.52887554,2763.5,2763.0,0.00539509]
[1645957125302,1.0,2763.4,2763.0,0.00539509]
[1645957126002,1.0,2763.4,2763.0,1.19728947]
[1645957126202,0.5059,2764.0,2763.0,1.19728947]
[1645957126403,1.89542301,2763.9,2763.0,1.20268443]
[1645957126601,1.0,2763.7,2763.0,1.50268443]
[1645957126804,1.52872983,2763.6,2763.0,1.50268443]
[1645957127071,0.36669318,2763.9,2763.0,1.50268443]
[1645957127072,0.00539318,2763.9,2763.5,1.18409744]
[1645957127258,4.5223,2764.2,2763.5,1.18409744]
[1645957127259,1.52859106,2763.8,2763.5,1.18409744]
[1645957127457,0.00539045,2763.9,2763.5,2.08885744]
[1645957127656,1.52862612,2763.8,2763.5,2.08885744]
[1645957127857,0.00539045,2763.9,2763.5,1.18409744]
[1645957128358,1.0,2764.1,2763.5,1.18409744]
[1645957128556,0.00539099,2763.9,2763.5,1.18409744]
[1645957128958,0.00539099,2763.9,2763.4,0.3]
[1645957129158,1.52859313,2763.8,2763.4,0.3]
[1645957129360,1.52859313,2763.8,2763.3,0.3]
[1645957129563,1.52859313,2763.8,2763.1,4.779]
[1645957129759,1.52859313,2763.8,2763.1,3.6317]
[1645957130362,1.11625516,2763.5,2763.1,3.6317]
[1645957131097,1.1499,2763.8,2763.1,3.6317]
[1645957131299,1.52873797,2763.7,2763.1,3.6317]
[1645957132307,1.4221177,2763.6,2763.1,3.6317]
[1645957133104,2.1499,2763.8,2763.1,3.6317]
[1645957133304,1.52882712,2763.7,2763.1,3.6317]
[1645957134555,1.52882712,2763.7,2763.1,3.63023556]
[1645957134756,2.89613551,2763.7,2763.1,3.63023556]
[1645957134955,1.36730839,2763.7,2763.1,3.63023556]
[1645957135556,2.1499,2763.8,2763.1,3.63023556]
[1645957135759,1.52885595,2763.7,2763.1,3.63023556]
[1645957136155,2.1499,2763.8,2763.1,3.63023556]
[1645957136555,2.72294364,2763.7,2763.1,3.63023556]
[1645957136756,1.19409693,2763.7,2763.1,3.63023556]
[1645957136955,1.19409693,2763.7,2763.1,3.10823556]
[1645957137956,2.5112,2763.8,2763.1,3.10823556]
[1645957137957,2.1499,2763.8,2763.1,3.10823556]
[1645957138159,1.52883856,2763.7,2763.1,2.10823556]
[1645957138403,1.52883856,2763.7,2763.1,3.10823556]
[1645957138603,1.52883856,2763.7,2763.1,3.63023556]
[1645957139309,1.52883856,2763.7,2763.1,2.72546556]
[1645957139708,1.52883856,2763.7,2763.2,0.90485]
[1645957140109,1.14829344,2763.6,2763.2,1.20485]
[1645957140309,1.52889913,2763.5,2763.2,1.20485]
[1645957140710,2.1499,2763.8,2763.2,1.20485]
[1645957140914,1.52890144,2763.7,2763.2,1.20485]
[1645957141111,1.89020144,2763.7,2763.2,1.20485]
[1645957141312,1.52890144,2763.6,2763.2,0.3]
[1645957141714,1.30161618,2763.5,2763.1,1.20346556]
[1645957141911,0.3613,2763.7,2763.1,1.20346556]
[1645957142146,2.52890195,2763.6,2763.1,1.20346556]
[1645957142351,1.52890195,2763.5,2763.1,1.20346556]
[1645957143149,1.52890195,2763.5,2763.1,0.90493]
[1645957143348,1.12673864,2763.4,2763.1,0.90493]
[1645957143548,1.12673864,2763.4,2763.1,1.20493]
[1645957143748,1.0,2763.6,2763.1,1.20493]
[1645957143950,1.52888164,2763.5,2763.1,1.20493]
[1645957147798,1.52888164,2763.5,2763.1,2.1098]
[1645957148898,1.52888164,2763.5,2763.1,0.90493]
[1645957149101,1.52888164,2763.5,2763.1,1.20493]
[1645957150355,1.52888164,2763.5,2763.1,2.1098]
[1645957150556,1.52888164,2763.5,2763.1,2.4098]
[1645957150960,1.52888164,2763.5,2763.1,2.9318]
[1645957151362,1.52888164,2763.5,2763.1,3.9318]
[1645957151562,1.52888164,2763.5,2763.1,2.9318]
[1645957151761,1.52888164,2763.5,2763.1,3.9318]
[1645957151966,1.52888164,2763.5,2763.1,3.02693]
[1645957152362,1.52888164,2763.5,2763.1,1.72693]
[1645957152562,1.52888164,2763.5,2763.1,2.72693]
[1645957152767,1.52888164,2763.5,2763.1,1.72693]
[1645957152965,1.52888164,2763.5,2763.1,2.72693]
[1645957153617,1.52888164,2763.5,2763.1,2.20493]
[1645957153804,1.52888164,2763.5,2763.1,1.20493]
[1645957155412,1.52888164,2763.5,2763.0,0.60566355]
[1645957155704,1.52888164,2763.5,2763.0,0.00566355]
[1645957156206,1.52888164,2763.5,2762.9,1.36772632]
[1645957156406,1.52888164,2763.5,2763.0,0.00566348]
[1645957156606,1.89018164,2763.5,2763.0,0.00566348]
[1645957156807,1.52888164,2763.4,2763.0,0.00566348]
[1645957157052,1.52888164,2763.4,2762.9,3.73529168]
[1645957157754,1.52888164,2763.4,2762.9,2.8257898]
[1645957157961,1.52888164,2763.4,2762.9,2.73529168]
[1645957158155,1.3613,2763.6,2762.9,3.73529168]
[1645957158356,1.52891748,2763.5,2763.0,0.90950188]
[1645957158756,1.52891748,2763.5,2763.0,1.20950188]
[1645957159158,1.52891748,2763.5,2763.1,1.80972]
[1645957159762,1.52891748,2763.7,2763.1,2.71458]
[1645957159958,1.52891748,2763.6,2763.1,2.56198]
[1645957160159,1.52891748,2763.7,2763.1,2.56198]
[1645957160356,1.52891748,2763.7,2763.1,3.26198]
[1645957160564,1.52891748,2763.7,2763.1,2.26198]
[1645957160802,1.52891748,2763.7,2763.1,3.26198]
[1645957161000,1.52891748,2763.7,2763.4,1.42820637]
[1645957161202,0.00601454,2763.5,2763.4,1.42820637]
[1645957161702,1.53493202,2763.5,2763.4,1.42820637]
[1645957162106,1.52891748,2763.5,2763.4,1.42820637]
[1645957163110,1.52891748,2763.5,2763.4,0.97560637]
[1645957163911,0.00601452,2763.6,2763.4,0.97560637]
[1645957164573,1.0,2763.8,2763.4,0.97560637]
[1645957164860,1.52876382,2763.7,2763.4,0.97560637]
[1645957165858,1.53477767,2763.7,2763.4,0.97560637]
[1645957166060,0.00601385,2763.7,2763.3,0.3]
[1645957166260,1.52878953,2763.6,2763.2,1.20950188]
[1645957167059,0.00601394,2763.5,2763.2,1.20950188]
[1645957167265,0.00601394,2763.5,2763.3,1.05761564]
[1645957167463,0.00601394,2763.5,2763.2,0.3]
[1645957167665,0.00601394,2763.5,2763.1,4.77148188]
[1645957167864,0.00601394,2763.5,2763.1,4.47148188]
[1645957168069,1.0,2763.8,2763.1,4.77148188]
[1645957168296,0.00601379,2763.5,2763.1,4.77148188]
[1645957168693,0.00601379,2763.5,2763.2,1.37076254]
[1645957168894,0.00601379,2763.5,2763.1,4.77148188]
[1645957169305,0.3613,2763.7,2763.1,0.90950188]
[1645957169501,0.00601379,2763.5,2763.0,1.20494]
[1645957169699,1.52888975,2763.4,2763.0,1.20494]
[1645957169899,1.52888975,2763.4,2763.1,1.26242421]
[1645957170100,0.00601379,2763.5,2763.1,2.17192609]
[1645957170301,0.00601379,2763.5,2763.1,0.90950188]
[1645957170501,1.0,2763.7,2763.0,3.41444188]
[1645957170701,0.0060097,2763.5,2763.1,0.90950188]
[1645957170902,0.0060097,2763.5,2763.0,3.11444188]
[1645957171102,0.0060097,2763.5,2763.0,3.41444188]
[1645957171301,0.0060097,2763.5,2763.1,0.90950188]
[1645957171500,0.0060097,2763.5,2763.0,3.4112413]
[1645957171702,1.0,2763.7,2763.1,0.90950188]
[1645957171902,0.0060097,2763.5,2763.1,0.90950188]
[1645957172172,0.0060097,2763.5,2763.0,2.7112413]
[1645957172373,0.0060097,2763.5,2763.1,0.90950188]
[1645957172671,0.0060097,2763.5,2763.1,1.81442188]
[1645957172870,1.0,2763.7,2763.1,1.81442188]
[1645957173071,0.0060097,2763.5,2763.1,1.81442188]
[1645957173674,0.0060097,2763.5,2763.1,2.71929188]
[1645957173874,0.0060097,2763.5,2763.1,4.01929188]
[1645957174071,2.30061053,2764.0,2763.1,4.01929188]
[1645957174273,0.0060097,2763.5,2763.1,4.01929188]
[1645957174674,0.0060097,2763.5,2763.2,0.90950188]
[1645957174874,0.0060097,2763.5,2763.2,4.40950188]
[1645957175074,0.0060097,2763.5,2763.2,1.20950188]
[1645957175278,2.1718,2764.0,2763.2,0.3]
[1645957175476,1.52884348,2763.9,2763.2,0.3]
[1645957175807,0.00600977,2763.5,2763.1,2.20950188]
[1645957176307,0.00600977,2763.5,2763.1,1.20950188]
[1645957176506,1.11146486,2763.7,2763.1,1.20950188]
[1645957176706,0.0060097,2763.5,2763.1,1.20950188]
[1645957176907,0.0060097,2763.5,2763.0,5.5210013]
[1645957177512,0.0060097,2763.5,2763.0,4.31926188]
[1645957177714,2.11146486,2763.7,2763.0,3.01926188]
[1645957177915,2.52891479,2763.6,2763.0,4.31926188]
[1645957178214,1.53492442,2763.5,2763.0,3.40976]
[1645957178417,1.52891479,2763.4,2763.0,3.40976]
[1645957178619,1.52891479,2763.4,2763.0,2.40976]
[1645957178814,1.52891479,2763.4,2763.0,1.80976]
[1645957179015,1.52891479,2763.3,2763.0,1.80976]
[1645957179216,1.52891479,2763.2,2763.0,1.80976]
[1645957179574,0.00600956,2763.5,2763.0,1.80976]
[1645957179760,1.52903586,2763.4,2762.9,0.00601105]
[1645957179958,1.89033586,2763.4,2762.9,0.00601105]
[1645957180159,1.52903586,2763.3,2762.7,0.00169071]
[1645957180360,1.52903586,2763.3,2762.9,0.00601098]
[1645957180860,1.0,2763.2,2762.9,0.00601098]
[1645957181060,2.52903586,2763.1,2762.9,0.00601098]
[1645957181266,2.52903586,2763.1,2762.7,4.44536548]
[1645957181267,1.52903586,2763.0,2762.7,4.44536548]
[1645957181459,1.52903586,2763.0,2762.7,4.44367477]
[1645957181658,1.52903586,2763.0,2762.9,0.00601083]
[1645957181962,7.0,2762.8,2762.2,0.90950188]
[1645957182171,7.0,2762.8,2762.2,4.94060037]
[1645957182172,1.0,2762.5,2762.2,4.94060037]
[1645957182368,1.52594776,2762.4,2762.2,4.03109849]
[1645957182567,1.52594776,2762.4,2761.5,1.72145282]
[1645957182568,1.52594776,2762.4,2761.6,0.90950188]
[1645957182766,1.88724776,2762.4,2761.5,1.15950188]
[1645957182966,1.52594776,2762.3,2761.5,0.90950188]
[1645957183414,1.29654248,2761.9,2761.4,0.90950188]
[1645957183614,1.29654248,2761.9,2761.3,8.26950188]
[1645957183615,2.29654248,2761.9,2761.3,8.26950188]
[1645957183820,1.0,2761.9,2761.3,8.26950188]
[1645957184015,1.0,2761.9,2761.5,0.00198248]
[1645957184214,1.0,2761.9,2761.3,8.15158436]
[1645957184418,1.6019,2762.4,2761.2,0.90950188]
[1645957184618,1.0,2761.8,2761.2,0.90950188]
[1645957185017,1.0,2761.8,2761.3,1.44498723]
[1645957185219,1.0,2761.8,2761.3,0.90950188]
[1645957185418,1.0,2761.8,2761.4,3.5]
[1645957185619,1.0,2761.8,2761.3,1.20950188]
[1645957185820,1.0,2761.8,2761.4,1.95557]
[1645957186220,1.0,2761.8,2761.5,0.6]
[1645957186620,1.0,2761.8,2761.5,0.3]
[1645957187260,1.0,2761.8,2761.4,0.1448]
[1645957187461,1.5378,2762.1,2761.3,1.04000408]
[1645957187761,1.5378,2762.1,2761.3,0.00167854]
[1645957187762,1.0,2761.6,2761.3,0.00167854]
[1645957187960,1.0,2761.6,2761.1,1.95985188]
[1645957188161,1.0,2761.6,2761.1,1.05035]
[1645957188561,1.0,2761.6,2761.0,1.81676042]
[1645957188764,1.0,2761.6,2761.2,1.34598773]
[1645957189165,1.0,2762.0,2761.3,0.90950188]
[1645957189364,1.0,2762.0,2761.4,0.90544]
[1645957190169,4.5,2761.9,2761.3,0.30167854]
[1645957190367,3.5,2761.9,2761.3,0.00167854]
[1645957190568,1.0,2761.6,2761.3,0.00167854]
[1645957190821,1.0,2761.6,2761.2,0.1448]
[1645957191020,1.0,2761.6,2761.3,1.42660583]
[1645957191321,1.2071,2762.1,2761.3,2.33203583]
[1645957191526,1.0,2762.0,2761.3,2.63371437]
[1645957192325,4.5,2762.0,2761.3,1.72828437]
[1645957192524,1.0,2762.0,2761.3,1.72828437]
[1645957192725,1.0,2762.0,2761.4,1.81085]
[1645957193124,1.2071,2762.1,2761.4,1.81085]
[1645957193327,1.0,2761.9,2761.4,1.81085]
[1645957193524,1.0,2761.9,2761.5,0.00195591]
[1645957194127,1.0,2761.7,2761.5,0.00195591]
[1645957194425,3.5,2761.6,2761.5,0.00195591]
[1645957194665,3.5,2761.6,2761.2,0.1448]
[1645957194666,4.5,2761.6,2761.2,0.1448]
[1645957194864,3.5,2761.5,2761.2,0.1448]
[1645957195066,1.0,2761.3,2761.2,0.1448]
[1645957195264,2.16419447,2761.3,2761.2,0.1448]
[1645957195465,2.16419447,2761.3,2761.0,0.02401376]
[1645957195865,1.0,2761.2,2760.7,0.00167854]
[1645957196064,1.0,2761.2,2760.6,1.15907009]
[1645957196264,4.7312,2761.6,2760.6,1.15907009]
[1645957196465,1.0,2761.1,2760.7,0.00167854]
[1645957196672,1.2312,2761.6,2760.6,1.68107009]
[1645957196864,1.0,2761.5,2760.7,0.00167854]
[1645957197067,1.0,2761.5,2761.2,1.0668907]
[1645957197272,2.5624,2761.9,2761.3,0.522]
[1645957197672,6.4251,2762.0,2761.3,0.522]
[1645957197868,6.4251,2762.0,2761.3,0.52367854]
[1645957198306,1.31494194,2761.9,2761.3,0.52367854]
[1645957198509,1.31494194,2761.9,2761.5,0.00598978]
[1645957198709,2.31494194,2761.9,2761.5,0.00598978]
[1645957199107,1.31494194,2761.9,2761.5,0.00598978]
[1645957199315,1.0,2761.7,2761.3,0.00167854]
[1645957199509,1.0,2761.7,2761.2,1.0668907]
[1645957199707,1.0,2761.7,2761.5,0.00598986]
[1645957200510,1.0,2761.7,2761.3,1.20549]
[1645957200913,1.0,2761.7,2761.5,0.00598981]
[1645957201713,3.2692,2762.8,2761.6,5.822]
[1645957201917,4.431,2762.8,2761.6,5.822]
[1645957202165,4.431,2762.8,2761.7,1.20533]
[1645957202166,0.00598745,2762.6,2761.7,1.20533]
[1645957202367,0.00598745,2762.6,2761.8,1.1833]
[1645957202565,0.00598745,2762.6,2761.8,1.18497854]
[1645957202764,0.00598745,2762.6,2761.9,1.78669164]
[1645957202966,1.1618,2762.8,2762.0,0.522]
[1645957202967,2.1618,2762.8,2762.0,0.522]
[1645957203170,0.00599087,2762.6,2762.0,2.69539854]
[1645957203366,0.00599087,2762.6,2762.0,3.29539854]
[1645957203769,0.00599087,2762.6,2762.0,4.29539854]
[1645957203966,0.00599087,2762.6,2762.0,14.33372]
[1645957204167,1.0,2763.2,2762.3,1.26633]
[1645957204370,1.0,2763.2,2762.4,1.78835]
[1645957204572,0.00599102,2762.6,2762.4,4.50352]
[1645957204768,0.00599102,2762.6,2762.5,0.3]
[1645957204969,0.00599102,2762.6,2762.5,0.822]
[1645957205368,1.0,2762.8,2762.5,0.822]
[1645957205569,1.0,2762.8,2762.6,1.37830414]
[1645957205807,0.00599109,2762.7,2762.6,1.90030414]
[1645957206606,1.0,2762.8,2762.6,1.90030414]
[1645957206808,1.00599102,2762.8,2762.6,1.90030414]
[1645957207815,1.0,2762.8,2762.6,0.522]
[1645957208015,1.0,2762.8,2762.3,2.33379854]
[1645957208217,1.0,2762.7,2762.3,2.33379854]
[1645957208416,1.0,2762.7,2762.3,2.33212]
[1645957208815,1.0,2762.7,2762.6,1.09321575]
[1645957209867,1.0,2762.7,2762.6,1.08290975]
[1645957212070,1.0,2762.7,2762.5,0.3]
[1645957212269,1.0,2762.7,2762.3,2.63212]
[1645957212480,1.0,2762.7,2762.3,0.522]
[1645957212674,1.0,2762.4,2762.2,0.00167854]
[1645957212871,1.0,2762.4,2762.0,0.00167854]
[1645957213072,1.0,2762.4,2761.9,0.3]
[1645957213311,1.0,2762.4,2761.8,1.52367854]
[1645957213312,1.0,2762.4,2761.8,0.82367854]
[1645957213512,1.0,2762.4,2761.8,1.72899854]
[1645957213712,1.0,2762.4,2761.9,0.90523]
[1645957214612,1.0,2762.4,2761.9,4.8259986]
[1645957214813,1.0,2762.4,2762.3,1.34318455]
[1645957215018,1.0,2762.5,2762.3,1.34318455]
[1645957215214,1.0,2762.5,2762.1,0.00167854]
[1645957215420,2.6548,2763.3,2761.7,0.25]
[1645957215421,1.0,2762.2,2761.8,0.00167854]
[1645957215716,0.3613,2762.3,2761.6,0.00167854]
[1645957215915,0.0059908,2762.6,2761.5,0.02996574]
[1645957215916,1.0,2761.8,2761.5,0.02996574]
[1645957216316,2.50501422,2761.8,2761.2,1.3581878]
[1645957216520,1.50501422,2761.8,2761.2,1.35650926]
[1645957216716,1.50501422,2761.8,2761.5,0.00599233]
[1645957217167,1.3613,2761.6,2761.5,0.00599233]
[1645957217567,1.3613,2761.6,2761.1,0.02565142]
[1645957217568,4.8613,2761.6,2761.1,0.00167854]
[1645957217862,3.8613,2761.6,2761.0,0.02397316]
[1645957218064,1.0,2761.1,2761.0,0.02397316]
[1645957218661,1.0,2761.1,2760.8,1.06047599]
[1645957218863,1.0,2761.1,2760.8,1.05879745]
[1645957219063,0.3613,2761.2,2760.5,0.00167854]
[1645957219263,0.3613,2761.2,2760.9,0.00599274]
[1645957219863,0.3613,2761.2,2760.7,0.00167854]
[1645957220068,1.0,2760.9,2760.8,1.09117711]
[1645957220804,1.0,2760.9,2760.7,0.3]
[1645957221009,1.0,2760.9,2760.5,0.02565311]
[1645957221209,1.3613,2761.2,2760.5,0.00167854]
[1645957221408,0.3613,2761.2,2760.7,0.00599288]
[1645957221611,1.0,2761.0,2760.7,0.00599288]
[1645957222208,1.0,2760.9,2760.6,0.1072]
[1645957222612,1.0,2760.9,2760.7,0.00599288]
[1645957223408,1.0,2760.9,2760.6,0.1072]
[1645957223609,1.0,2760.9,2760.6,1.1431564]
[1645957223809,1.0,2760.9,2760.7,0.00599292]
[1645957224660,0.4996,2761.3,2760.6,2.05265828]
[1645957224861,0.3613,2761.6,2760.7,0.00167854]
[1645957225063,0.8605,2761.6,2760.7,0.00599292]
[1645957225265,0.3613,2761.6,2760.7,0.00767146]